fUST/lending_fUST_20250727
["ID","MTS","AMOUNT","RATE_DAILY","PERIOD"]
[375158007,1753557045735,-460.0,0.00019721,2]
[375158008,1753557045745,-460.0,0.00019721,2]
[375158009,1753557045755,-460.0,0.00019721,2]
[375158010,1753557045765,-460.0,0.00019721,2]
[375158011,1753557045775,-460.0,0.00019722,2]
[375158012,1753557045785,-460.0,0.00019722,2]
[375158013,1753557045795,-460.0,0.00019723,2]
[375158014,1753557045807,-500.0,0.00019723,2]
[375158015,1753557045817,-460.0,0.00019723,2]
[375158016,1753557045827,-460.0,0.00019723,2]
[375158017,1753557045837,-460.0,0.00019723,2]
[375158018,1753557045847,-460.0,0.00019724,2]
[375158019,1753557045856,-460.0,0.00019724,2]
[375158020,1753557045866,-1189.1,0.00019724,2]
[375158021,1753557045876,-460.0,0.00019724,2]
[375158022,1753557045886,-298.82,0.00019724,2]
[375158023,1753557045897,-338.38484176,0.00019725,2]
[375158024,1753557045907,-497.82,0.00019725,2]
[375158025,1753557045917,-510.17,0.00019725,2]
[375158026,1753557045927,-460.0,0.00019725,2]
[375158027,1753557045938,-500.0,0.00019726,2]
[375158028,1753557045949,-500.0,0.00019726,2]
[375158029,1753557045960,-151.0,0.00019726,2]
[375158030,1753557045971,-374.1985816,0.00019973,2]
[375158031,1753557045982,-460.0,0.00019984,2]
[375158032,1753557045993,-460.0,0.00019984,2]
[375158033,1753557046004,-460.0,0.00019984,2]
[375158034,1753557046014,-460.0,0.00019984,2]
[375158035,1753557046024,-460.0,0.00019984,2]
[375158036,1753557046033,-710.28,0.00019984,2]
[375158037,1753557046043,-305.9,0.00019984,3]
[375158038,1753557046054,-611.81,0.00019985,3]
[375158039,1753557046064,-331.11592635,0.00019994,2]
[375158040,1753557046074,-460.0,0.00019994,2]
[375158041,1753557046083,-460.0,0.00019994,2]
[375158042,1753557046093,-460.0,0.00019994,2]
[375158043,1753557046103,-460.0,0.00019994,2]
[375158044,1753557046113,-460.0,0.00019994,2]
[375158045,1753557046122,-460.0,0.00019994,2]
[375158046,1753557046134,-469.28,0.00019994,2]
[375158047,1753557046145,-151.0,0.00019994,2]
[375158048,1753557046155,-674.01,0.00019994,2]
[375158049,1753557046164,-460.0,0.00019995,2]
[375158050,1753557046175,-460.0,0.00019995,2]
[375158051,1753557046185,-460.0,0.00019995,2]
[375158052,1753557046195,-460.0,0.00019995,2]
[375158054,1753557046204,-460.0,0.00019995,2]
[375158056,1753557046216,-460.0,0.00019995,2]
[375158058,1753557046226,-460.0,0.00019995,2]
[375158060,1753557046236,-460.0,0.00019995,2]
[375158061,1753557046245,-460.0,0.00019995,2]
[375158063,1753557046255,-460.0,0.00019995,2]
[375158065,1753557046265,-151.0,0.00019996,2]
[375158067,1753557046276,-151.0,0.00019996,2]
[375158068,1753557046286,-460.0,0.00019996,2]
[375158069,1753557046296,-460.0,0.00019996,2]
[375158071,1753557046306,-151.0,0.00019996,2]
[375158073,1753557046315,-151.0,0.00019996,2]
[375158074,1753557046325,-500.0,0.00019997,2]
[375158075,1753557046334,-460.0,0.00019997,2]
[375158076,1753557046344,-460.0,0.00019997,2]
[375158077,1753557046353,-460.0,0.00019998,2]
[375158078,1753557046363,-460.0,0.00019998,2]
[375158079,1753557046372,-1189.1,0.00019998,2]
[375158080,1753557046382,-460.0,0.00019998,2]
[375158081,1753557046391,-151.0,0.00019999,2]
[375158082,1753557046401,-151.0,0.00019999,2]
[375158083,1753557046411,-151.0,0.00019999,2]
[375158084,1753557046420,-151.0,0.00019999,2]
[375158085,1753557046430,-510.17,0.00019999,2]
[375158086,1753557046439,-151.0,0.00019999,2]
[375158087,1753557046449,-314.59,0.00019999,2]
[375158088,1753557046458,-500.0,0.0002,2]
[375158089,1753557046468,-500.0,0.0002,2]
[375158090,1753557046478,-151.0,0.0002,2]
[375158091,1753557046488,-152.95,0.00020053,3]
[375158092,1753557046497,-151.0,0.0002006,2]
[375158093,1753557046507,-151.0,0.0002006,2]
[375158094,1753557046516,-151.0,0.0002006,2]
[375158095,1753557046526,-151.0,0.0002006,2]
[375158096,1753557046535,-151.0,0.0002006,2]
[375158097,1753557046544,-151.0,0.0002006,2]
[375158098,1753557046553,-151.0,0.00020061,2]
[375158099,1753557046563,-151.0,0.00020061,2]
[375158100,1753557046573,-151.0,0.00020061,2]
[375158101,1753557046583,-151.0,0.00020063,2]
[375158102,1753557046595,-151.0,0.00020063,2]
[375158103,1753557046605,-151.0,0.00020063,2]
[375158104,1753557046615,-151.0,0.00020063,2]
[375158105,1753557046625,-151.499831,0.00020063,2]
[375158106,1753557046634,-151.0,0.00020063,2]
[375158107,1753557046644,-267.144828,0.00020063,2]
[375158108,1753557046654,-151.0,0.00020063,2]
[375158109,1753557046664,-151.0,0.00020063,2]
[375158110,1753557046674,-151.0,0.00020063,2]
[375158111,1753557046684,-151.0,0.00020063,2]
[375158112,1753557046694,-151.0,0.00020063,2]
[375158113,1753557046705,-151.0,0.00020063,2]
[375158114,1753557046715,-168.950022,0.00020063,2]
[375158115,1753557046724,-168.950022,0.00020063,2]
[375158116,1753557046734,-151.0,0.00020063,2]
[375158117,1753557046744,-151.0,0.00020063,2]
[375158118,1753557046753,-171.392354,0.00020063,2]
[375158119,1753557046763,-165.817324,0.00020063,2]
[375158120,1753557046772,-151.0,0.00020063,2]
[375158121,1753557046783,-278.986032,0.00020063,2]
[375158122,1753557046793,-68396.77870715,0.00020063,2]
[375158123,1753557046803,-531.29049016,0.00020073,2]
[375158124,1753557046813,-151.0,0.00020162,2]
[375158125,1753557046822,-151.0,0.00020162,2]
[375158126,1753557046832,-151.0,0.00020162,2]
[375158127,1753557046842,-151.0,0.00020173,2]
[375158128,1753557046853,-151.0,0.00020173,2]
[375158129,1753557046865,-151.0,0.00020173,2]
[375158130,1753557046876,-151.0,0.00020173,2]
[375158131,1753557046885,-151.0,0.00020173,2]
[375158132,1753557046896,-151.0,0.00020173,2]
[375158133,1753557046906,-151.0,0.00020173,2]
[375158134,1753557046915,-188.74095381,0.00020229,2]
[375158135,1753557046926,-460.0,0.00020258,2]
[375158136,1753557046935,-460.0,0.00020258,2]
[375158137,1753557046945,-460.0,0.00020258,2]
[375158138,1753557046955,-710.28,0.00020258,2]
[375158139,1753557046965,-460.0,0.00020268,2]
[375158140,1753557046974,-460.0,0.00020268,2]
[375158141,1753557046984,-460.0,0.00020268,2]
[375158142,1753557046994,-460.0,0.00020268,2]
[375158143,1753557047004,-460.0,0.00020268,2]
[375158144,1753557047014,-460.0,0.00020268,2]
[375158145,1753557047023,-674.01,0.00020268,2]
[375158146,1753557047032,-460.0,0.00020269,2]
[375158147,1753557047042,-251.81,0.00020269,2]
[375158148,1753557047051,-460.0,0.00020269,2]
[375158149,1753557047061,-460.0,0.00020269,2]
[375158150,1753557047071,-578.10077761,0.00020269,2]
[375158151,1753557047082,-460.0,0.00020269,2]
[375158152,1753557047091,-460.0,0.00020269,2]
[375158153,1753557047101,-428.97112231,0.00020269,2]
[375158154,1753557047110,-418.70102365,0.00020269,2]
[375158155,1753557047120,-460.0,0.0002027,2]
[375158156,1753557047130,-238.75,0.0002027,2]
[375158157,1753557047142,-571.25637988,0.00020271,2]
[375158158,1753557047153,-460.0,0.00020272,2]
[375158159,1753557047163,-460.0,0.00020272,2]
[375158160,1753557047175,-1189.1,0.00020272,2]
[375158161,1753557047185,-460.0,0.00020272,2]
[375158162,1753557047195,-510.17,0.00020273,2]
[375158163,1753557047205,-500.0,0.00020274,2]
[375158164,1753557047214,-500.0,0.00020274,2]
[375158165,1753557047224,-171.06955468,0.00020274,2]
[375158166,1753557047234,-160.0,0.00020433,2]
[375158167,1753557047243,-840.57612966,0.00020433,2]
[375158168,1753557047253,-160.0,0.00020433,2]
[375158169,1753557047265,-476.98041219,0.00020433,2]
[375158170,1753557047275,-312.16666667,0.00020433,2]
[375158171,1753557047286,-160.0,0.00020433,2]
[375158172,1753557047297,-12629.83479014,0.00020434,2]
[375158173,1753557047308,-214.8008262,0.00020434,2]
[375158174,1753557047318,-215.9757969,0.00020434,2]
[375158175,1753557047329,-160.0,0.00020434,2]
[375158176,1753557047339,-198.534608,0.00020438,2]
[375158177,1753557047351,-191.607284,0.00020438,2]
[375158178,1753557047360,-151.0,0.00020438,2]
[375158179,1753557047370,-168.950022,0.00020438,2]
[375158180,1753557047379,-168.950022,0.00020438,2]
[375158181,1753557047388,-236.35,0.00020532,2]
[375158182,1753557047398,-591.61,0.00020532,2]
[375158183,1753557047408,-460.0,0.00020532,2]
[375158184,1753557047418,-710.28,0.00020532,2]
[375158185,1753557047427,-460.0,0.00020542,2]
[375158186,1753557047438,-532.48022944,0.00020542,2]
[375158187,1753557047448,-460.0,0.00020542,2]
[375158188,1753557047457,-460.0,0.00020542,2]
[375158189,1753557047466,-460.0,0.00020542,2]
[375158190,1753557047476,-460.0,0.00020542,2]
[375158191,1753557047486,-674.01,0.00020542,2]
[375158192,1753557047495,-460.0,0.00020543,2]
[375158193,1753557047505,-460.0,0.00020543,2]
[375158194,1753557047515,-609.68454124,0.00020543,2]
[375158195,1753557047524,-572.62,0.00020543,2]
[375158196,1753557047534,-460.0,0.00020543,2]
[375158197,1753557047544,-151.0,0.00020543,2]
[375158198,1753557047553,-269.074256,0.00020544,2]
[375158199,1753557047563,-460.0,0.00020544,2]
[375158200,1753557047572,-151.0,0.00020546,2]
[375158201,1753557047581,-460.0,0.00020546,2]
[375158202,1753557047591,-460.0,0.00020546,2]
[375158203,1753557047601,-1189.1,0.00020546,2]
[375158204,1753557047610,-460.0,0.00020546,2]
[375158205,1753557047619,-510.17,0.00020547,2]
[375158206,1753557047628,-500.0,0.00020548,2]
[375158207,1753557047638,-500.0,0.00020548,2]
[375158208,1753557047647,-374.19858157,0.00020698,2]
[375158209,1753557047656,-460.0,0.00020806,2]
[375158210,1753557047666,-710.28,0.00020806,2]
[375158211,1753557047675,-460.0,0.00020816,2]
[375158212,1753557047684,-460.0,0.00020816,2]
[375158213,1753557047693,-460.0,0.00020816,2]
[375158214,1753557047702,-460.0,0.00020816,2]
[375158215,1753557047711,-460.0,0.00020816,2]
[375158216,1753557047720,-674.01,0.00020816,2]
[375158217,1753557047729,-460.0,0.00020817,2]
[375158218,1753557047740,-460.0,0.00020817,2]
[375158219,1753557047748,-474.65,0.00020817,2]
[375158220,1753557047757,-460.0,0.00020818,2]
[375158221,1753557047766,-460.0,0.0002082,2]
[375158222,1753557047775,-460.0,0.0002082,2]
[375158223,1753557047784,-1189.1,0.0002082,2]
[375158224,1753557047793,-460.0,0.0002082,2]
[375158225,1753557047803,-510.17,0.00020821,2]
[375158226,1753557047812,-500.0,0.00020822,2]
[375158227,1753557047821,-500.0,0.00020822,2]
[375158228,1753557047831,-267.79950692,0.00020833,2]
[375158229,1753557047840,-4876.85372399,0.0002089,2]
[375158230,1753557047849,-10073.97652951,0.0002099,2]
[375158231,1753557047858,-159.623658,0.0002099,2]
[375158232,1753557047867,-168.950022,0.0002099,2]
[375158233,1753557047876,-168.950022,0.0002099,2]
[375158234,1753557047886,-46356.24867432,0.00021,2]
[375158235,1753557047895,-285.87420029,0.00021,2]
[375158236,1753557047905,-199.9999,0.00021,2]
[375158237,1753557047915,-3000.0,0.00021,2]
[375158238,1753557047927,-240.474102,0.00021,2]
[375158239,1753557047936,-168.950022,0.00021,2]
[375158240,1753557047944,-168.950022,0.00021,2]
[375158241,1753557047953,-151.0,0.00021,2]
[375158242,1753557047962,-447.141,0.00021007,2]
[375158243,1753557047971,-3000.0,0.0002101,2]
[375158244,1753557047981,-3000.0,0.0002102,2]
[375158245,1753557047991,-3000.0,0.0002103,2]
[375158246,1753557048000,-3000.0,0.0002104,2]
[375158247,1753557048009,-3000.0,0.0002105,2]
[375158248,1753557048018,-800.0,0.00021051,2]
[375158249,1753557048028,-3000.0,0.0002106,2]
[375158250,1753557048037,-800.0,0.0002106,2]
[375158251,1753557048046,-3000.0,0.0002107,2]
[375158252,1753557048055,-3000.0,0.0002108,2]
[375158253,1753557048065,-460.0,0.0002108,2]
[375158254,1753557048074,-710.28,0.0002108,2]
[375158255,1753557048083,-3000.0,0.0002109,2]
[375158256,1753557048092,-460.0,0.0002109,2]
[375158257,1753557048102,-460.0,0.0002109,2]
[375158258,1753557048112,-460.0,0.0002109,2]
[375158259,1753557048121,-460.0,0.0002109,2]
[375158260,1753557048132,-460.0,0.0002109,2]
[375158261,1753557048143,-219.669474,0.0002109,2]
[375158262,1753557048153,-674.01,0.0002109,2]
[375158263,1753557048163,-460.0,0.00021091,2]
[375158264,1753557048172,-460.0,0.00021091,2]
[375158265,1753557048182,-460.0,0.00021092,2]
[375158266,1753557048192,-168.950022,0.00021093,2]
[375158267,1753557048201,-168.950022,0.00021093,2]
[375158268,1753557048213,-460.0,0.00021094,2]
[375158269,1753557048222,-460.0,0.00021094,2]
[375158270,1753557048231,-1189.1,0.00021094,2]
[375158271,1753557048241,-460.0,0.00021094,2]
[375158272,1753557048347,-510.17,0.00021095,2]
[375158273,1753557048372,-500.0,0.00021096,2]
[375158274,1753557048382,-500.0,0.00021096,2]
[375158275,1753557048392,-3000.0,0.000211,2]
[375158276,1753557048402,-3000.0,0.0002111,2]
[375158277,1753557048412,-188.74095381,0.0002111,2]
[375158278,1753557048421,-3000.0,0.0002112,2]
[375158279,1753557048431,-3000.0,0.0002113,2]
[375158280,1753557048441,-3000.0,0.0002114,2]
[375158281,1753557048451,-3000.0,0.0002115,2]
[375158282,1753557048460,-3000.0,0.0002116,2]
[375158283,1753557048470,-3000.0,0.0002117,2]
[375158284,1753557048480,-3000.0,0.0002118,2]
[375158285,1753557048490,-168.950022,0.0002118,2]
[375158286,1753557048500,-168.950022,0.0002118,2]
[375158287,1753557048509,-3000.0,0.0002119,2]
[375158288,1753557048519,-3000.0,0.000212,2]
[375158289,1753557048528,-3000.0,0.0002121,2]
[375158290,1753557048538,-151.0,0.0002122,2]
[375158291,1753557048547,-3000.0,0.0002122,2]
[375158292,1753557048557,-3000.0,0.0002123,2]
[375158293,1753557048567,-151.0,0.0002124,2]
[375158294,1753557048577,-151.0,0.0002124,2]
[375158295,1753557048586,-3000.0,0.0002124,2]
[375158296,1753557048596,-3000.0,0.0002125,2]
[375158297,1753557048605,-3000.0,0.0002126,2]
[375158298,1753557048616,-3000.0,0.0002127,2]
[375158299,1753557048625,-3000.0,0.0002128,2]
[375158300,1753557048636,-168.950022,0.0002128,2]
[375158301,1753557048646,-168.950022,0.0002128,2]
[375158302,1753557048656,-3000.0,0.0002129,2]
[375158303,1753557048665,-3000.0,0.000213,2]
[375158304,1753557048675,-3000.0,0.0002131,2]
[375158305,1753557048685,-3000.0,0.0002132,2]
[375158306,1753557048696,-3000.0,0.0002133,2]
[375158307,1753557048707,-3000.0,0.0002134,2]
[375158308,1753557048717,-3000.0,0.0002135,2]
[375158309,1753557048727,-1835.42,0.00021354,3]
[375158310,1753557048738,-611.8,0.00021354,3]
[375158311,1753557048748,-460.0,0.00021354,2]
[375158312,1753557048758,-710.28,0.00021354,2]
[375158313,1753557048768,-1223.62,0.00021355,3]
[375158314,1753557048778,-3000.0,0.0002136,2]
[375158315,1753557048787,-460.0,0.00021364,2]
[375158316,1753557048797,-458.45,0.00021364,2]
[375158317,1753557048806,-460.0,0.00021364,2]
[375158318,1753557048814,-460.0,0.00021364,2]
[375158319,1753557048823,-460.0,0.00021364,2]
[375158320,1753557048832,-674.01,0.00021364,2]
[375158321,1753557048841,-460.0,0.00021365,2]
[375158322,1753557048851,-460.0,0.00021365,2]
[375158323,1753557048861,-460.0,0.00021366,2]
[375158324,1753557048871,-460.0,0.00021368,2]
[375158325,1753557048881,-460.0,0.00021368,2]
[375158326,1753557048890,-1189.1,0.00021368,2]
[375158327,1753557048898,-460.0,0.00021368,2]
[375158328,1753557048908,-510.17,0.00021369,2]
[375158329,1753557048917,-500.0,0.0002137,2]
[375158330,1753557048926,-500.0,0.0002137,2]
[375158331,1753557048936,-3000.0,0.0002137,2]
[375158332,1753557048946,-168.950022,0.0002137,2]
[375158333,1753557048956,-168.950022,0.0002137,2]
[375158334,1753557048965,-3000.0,0.0002138,2]
[375158335,1753557048975,-3000.0,0.0002139,2]
[375158336,1753557048985,-3000.0,0.000214,2]
[375158337,1753557048995,-3000.0,0.0002141,2]
[375158338,1753557049005,-5487.829617,0.0002142,2]
[375158339,1753557049014,-305.9,0.00021423,3]
[375158340,1753557049025,-374.19858157,0.00021423,2]
[375158341,1753557049034,-205.4481837,0.00021534,5]
[375158342,1753557049044,-460.0,0.00021628,2]
[375158343,1753557049054,-460.0,0.00021638,2]
[375158344,1753557049064,-460.0,0.00021638,2]
[375158345,1753557049074,-460.0,0.00021638,2]
[375158346,1753557049084,-460.0,0.00021638,2]
[375158347,1753557049094,-674.01,0.00021638,2]
[375158348,1753557049104,-460.0,0.00021639,2]
[375158349,1753557049114,-460.0,0.00021639,2]
[375158350,1753557049124,-570.07,0.0002164,2]
[375158351,1753557049138,-460.0,0.00021642,2]
[375158352,1753557049147,-460.0,0.00021642,2]
[375158353,1753557049157,-1189.1,0.00021642,2]
[375158354,1753557049167,-460.0,0.00021642,2]
[375158355,1753557049177,-510.17,0.00021643,2]
[375158356,1753557049187,-500.0,0.00021644,2]
[375158357,1753557049197,-556.69162769,0.00021644,2]
[375158358,1753557049207,-460.0,0.00021902,2]
[375158359,1753557049217,-460.0,0.00021912,2]
[375158360,1753557049231,-460.0,0.00021912,2]
[375158361,1753557049242,-162.19,0.00021912,2]
[375158362,1753557049252,-256.24,0.00021912,2]
[375158363,1753557049262,-674.01,0.00021912,2]
[375158364,1753557049272,-460.0,0.00021913,2]
[375158365,1753557049283,-460.0,0.00021913,2]
[375158366,1753557049293,-460.0,0.00021916,2]
[375158367,1753557049303,-496.56016695,0.00021916,2]
[375158368,1753557049312,-1189.1,0.00021916,2]
[375158369,1753557049322,-264.37389644,0.00021916,2]
[375158370,1753557049332,-168.950022,0.00021917,2]
[375158371,1753557049342,-168.950022,0.00021917,2]
[375158372,1753557049351,-510.17,0.00021917,2]
[375158373,1753557049361,-500.0,0.00021918,2]
[375158374,1753557049371,-151.0,0.00021918,2]
[375158375,1753557049381,-348.63225812,0.00021918,2]
[375158376,1753557049391,-150.11780401,0.00021918,2]
[375158377,1753557049401,-188.74095381,0.00021992,2]
[375158378,1753557049411,-4264.81,0.00022,7]
[375158379,1753557049420,-684.71,0.00022,7]
[375158380,1753557049431,-1952.69,0.00022,7]
[375158381,1753557049441,-374.19858157,0.00022148,2]
[375158382,1753557049452,-167.5,0.00022152,2]
[375158383,1753557049463,-460.0,0.00022176,2]
[375158384,1753557049473,-460.0,0.00022186,2]
[375158385,1753557049483,-460.0,0.00022186,2]
[375158386,1753557049494,-674.01,0.00022186,2]
[375158387,1753557049504,-460.0,0.00022187,2]
[375158388,1753557049514,-460.0,0.00022187,2]
[375158389,1753557049523,-460.0,0.0002219,2]
[375158390,1753557049533,-1189.1,0.0002219,2]
[375158391,1753557049543,-510.17,0.00022191,2]
[375158392,1753557049552,-411.0,0.00022192,2]
[375158393,1753557049562,-20852.66,0.000222,2]
[375158394,1753557049574,-407.0,0.00022208,2]
[375158395,1753557049584,-460.0,0.0002245,2]
[375158396,1753557049596,-460.0,0.0002246,2]
[375158397,1753557049606,-472.34,0.0002246,2]
[375158398,1753557049616,-674.01,0.0002246,2]
[375158399,1753557049626,-460.0,0.00022461,2]
[375158400,1753557049636,-460.0,0.00022461,2]
[375158401,1753557049645,-460.0,0.00022464,2]
[375158402,1753557049655,-1079.67515447,0.00022464,2]
[375158403,1753557132164,150.0,0.00019856,30]
[375158404,1753557133082,150.0,0.00021661,30]
[375158406,1753557291794,210.8118669,0.00018662,2]
[375158407,1753557312323,280.504416,0.00018513,2]
[375158410,1753557428285,-158.475077,0.00019178,2]
[375158411,1753557428316,-460.0,0.00019436,2]
[375158412,1753557428346,-417.28232043,0.00019436,2]
[375158413,1753557428375,-460.0,0.00019436,2]
[375158414,1753557428401,-460.0,0.00019436,2]
[375158415,1753557428428,-460.0,0.00019436,2]
[375158416,1753557428455,-460.0,0.00019438,2]
[375158417,1753557428482,-480.73,0.00019438,2]
[375158418,1753557428509,-510.44,0.00019438,2]
[375158419,1753557428536,-460.0,0.00019438,2]
[375158420,1753557428564,-460.0,0.00019446,2]
[375158421,1753557428841,-473.52,0.00019446,2]
[375158422,1753557428868,-460.0,0.00019446,2]
[375158423,1753557428897,-460.0,0.00019446,2]
[375158424,1753557428926,-460.0,0.00019446,2]
[375158425,1753557428956,-460.0,0.00019446,2]
[375158426,1753557428985,-460.0,0.00019446,2]
[375158427,1753557429013,-460.0,0.00019446,2]
[375158428,1753557429042,-460.0,0.00019446,2]
[375158429,1753557429071,-460.0,0.00019447,2]
[375158430,1753557429101,-317.91,0.00019447,2]
[375158431,1753557429130,-460.0,0.00019447,2]
[375158432,1753557429228,-460.0,0.00019447,2]
[375158433,1753557429258,-460.0,0.00019447,2]
[375158434,1753557429395,160.0,0.00019435,2]
[375158436,1753557441614,460.0,0.00019438,2]
[375158437,1753557449654,460.0,0.00019446,2]
[375158438,1753557449946,460.0,0.00019438,2]
[375158439,1753557474067,460.0,0.00019446,2]
[375158440,1753557497698,460.0,0.00019438,2]
[375158441,1753557508531,460.0,0.00019446,2]
[375158442,1753557508852,460.0,0.00019447,2]
[375158444,1753557519432,500.0,0.00019447,2]
[375158445,1753557524911,460.0,0.00019438,2]
[375158446,1753557525981,257.6296973,0.00019446,2]
[375158447,1753557528472,460.0,0.00019438,2]
[375158448,1753557543098,460.0,0.00019436,2]
[375158449,1753557544997,460.0,0.00019438,2]
[375158450,1753557550967,-460.0,0.00019449,2]
[375158451,1753557550996,-460.0,0.00019449,2]
[375158452,1753557551027,-599.1,0.00019449,2]
[375158453,1753557551058,-500.0,0.00019449,2]
[375158454,1753557551087,-460.0,0.00019449,2]
[375158455,1753557551115,-460.0,0.00019449,2]
[375158456,1753557551144,-460.0,0.0001945,2]
[375158457,1753557551172,-460.0,0.0001945,2]
[375158458,1753557551202,-460.0,0.0001945,2]
[375158459,1753557551231,-248.74475813,0.0001945,2]
[375158460,1753557551261,-404.31048374,0.0001945,2]
[375158461,1753557551572,-55.68951626,0.0001945,2]
[375158462,1753557551722,-592.4,0.0001945,2]
[375158463,1753557551756,-202.21808423,0.00019523,2]
[375158464,1753557551785,-460.0,0.00019621,2]
[375158465,1753557551814,-460.0,0.00019621,2]
[375158466,1753557551842,-586.42730422,0.00019622,2]
[375158467,1753557551870,-500.0,0.00019622,2]
[375158468,1753557551899,-500.0,0.00019622,2]
[375158469,1753557551928,-500.0,0.00019622,2]
[375158470,1753557551957,-500.0,0.00019622,2]
[375158471,1753557551985,-500.0,0.00019622,2]
[375158472,1753557552025,-500.0,0.00019622,2]
[375158473,1753557552063,-243.74401539,0.00019622,2]
[375158474,1753557552099,-500.0,0.00019622,2]
[375158475,1753557552132,-626.07510321,0.00019622,2]
[375158476,1753557552163,-499.99999999,0.00019622,2]
[375158477,1753557552196,-460.0,0.00019623,2]
[375158478,1753557552229,-460.0,0.00019623,2]
[375158479,1753557552262,-460.0,0.00019623,2]
[375158480,1753557557861,460.0,0.00019621,2]
[375158481,1753557570606,460.0,0.00019447,2]
[375158482,1753557572374,460.0,0.00019446,2]
[375158483,1753557576293,460.0,0.00019621,2]
[375158484,1753557579393,264.24,0.00019438,2]
[375158486,1753557600967,396.12176282,0.00019621,2]
[375158487,1753557600992,63.87823718,0.00019621,2]
[375158488,1753557602160,460.0,0.00019446,2]
[375158489,1753557606447,460.0,0.00019446,2]
[375158490,1753557607585,150.0,0.00019418,2]
[375158491,1753557607838,485.3810763,0.00019447,2]
[375158492,1753557608292,460.0,0.00019438,2]
[375158493,1753557611877,460.0,0.00019436,2]
[375158494,1753557612123,150.0,0.00022018,30]
[375158495,1753557617735,191.85177838,0.00019612,2]
[375158496,1753557619387,460.0,0.00019438,2]
[375158497,1753557619566,460.0,0.00019621,2]
[375158498,1753557622722,460.0,0.00019436,2]
[375158499,1753557627279,461.31,0.00019446,2]
[375158500,1753557629502,460.0,0.00019446,2]
[375158501,1753557629688,460.0,0.00019446,2]
[375158502,1753557630525,460.0,0.00019446,2]
[375158504,1753557639235,460.0,0.00019621,2]
[375158505,1753557642709,460.0,0.00019446,2]
[375158506,1753557658546,460.0,0.00019622,2]
[375158507,1753557661313,460.0,0.00019449,2]
[375158508,1753557670630,465.64,0.00019447,2]
[375158509,1753557674192,293.75,0.00019621,2]
[375158510,1753557675575,1448.18890814,0.00019085,2]
[375158511,1753557675598,1401.16807976,0.00019085,2]
[375158512,1753557675651,460.0,0.00019436,2]
[375158513,1753557676973,460.0,0.00019446,2]
[375158514,1753557682243,460.0,0.00019622,2]
[375158515,1753557683357,464.72,0.00019446,2]
[375158516,1753557685458,460.0,0.00019447,2]
[375158517,1753557686215,574.14,0.0001945,2]
[375158518,1753557689184,150.0,0.00019509,2]
[375158519,1753557705984,460.0,0.00019446,2]
[375158520,1753557710365,546.82,0.00019436,2]
[375158521,1753557716133,460.0,0.00019446,2]
[375158522,1753557716491,176.94082371,0.00019523,2]